fUST/lending_fUST_20260617
["ID","MTS","AMOUNT","RATE_DAILY","PERIOD"]
[425285338,1781644241000,-796.79517445,0.00018578,2]
[425285617,1781644243000,-452.0,0.00018578,2]
[425285615,1781644243000,-12885.20645343,0.00018578,2]
[425285642,1781644243000,-54907.43701433,0.00018578,2]
[425285644,1781644243000,-1990.70963771,0.00018578,2]
[425285619,1781644243000,-2512.25604105,0.00018578,2]
[425285982,1781644246000,-1343.0789369,0.00018578,2]
[425285984,1781644246000,-355.3,0.00018578,2]
[425285974,1781644246000,-62308.94328927,0.00018578,2]
[425285956,1781644246000,-1247.21235212,0.00018578,2]
[425285953,1781644246000,-1565.81672411,0.00018578,2]
[425285958,1781644246000,-6579.00954959,0.00018578,2]
[425286631,1781645432000,-152.0,0.00015146,7]
[425286637,1781645432000,-403.69528524,0.00017438,2]
[425286633,1781645432000,-130.97168876,0.00017438,2]
[425286640,1781645432000,-163.959323,0.00017623,2]
[425286644,1781645432000,-3952.74269161,0.00018178,2]
[425286642,1781645432000,-159.928,0.00017913,2]
[425286638,1781645432000,-416.7546398,0.00017483,2]
[425286811,1781645438000,-1965.83825098,0.00018178,2]
[425286813,1781645438000,-22915.02475002,0.00018178,2]
[425286812,1781645438000,-2761.43621564,0.00018178,2]
[425286815,1781645438000,-12202.45412262,0.00018178,2]
[425286816,1781645438000,-28621.05661872,0.00018178,2]
[425286817,1781645438000,-4189.45215023,0.00018178,2]
[425286814,1781645438000,-2536.51378436,0.00018178,2]
[425286853,1781645441000,-2176.4311415,0.00018178,2]
[425286850,1781645441000,-1019.05201729,0.00018178,2]
[425286852,1781645441000,-1485.55645327,0.00018178,2]
[425286851,1781645441000,-8221.01872154,0.00018178,2]
[425286903,1781645445000,-468.942,0.00018178,2]
[425286901,1781645445000,-813.5,0.00018178,2]
[425287020,1781645446000,-276.5150003,0.00018178,2]
[425287028,1781645446000,-46355.38751532,0.00018178,2]
[425287051,1781645446000,-63614.1874677,0.00018178,2]
[425287049,1781645446000,-409215.51388602,0.00018178,2]
[425287030,1781645446000,-6592.38983299,0.00018178,2]
[425287442,1781645505000,1025.91267145,0.0001815,2]
[425287492,1781646552000,-703.49973567,0.000144,2]
[425287536,1781646633000,-352.31782305,0.00014839,2]
[425287534,1781646633000,-322.41293578,0.000144,2]
[425287551,1781646633000,-545.152523,0.0001665,2]
[425287538,1781646633000,-412.41705481,0.00015146,7]
[425287542,1781646633000,-151.0,0.00015709,2]
[425287544,1781646633000,-412.41705481,0.00015903,7]
[425287546,1781646633000,-433.4581101,0.00015994,2]
[425287547,1781646633000,-412.41705481,0.00016358,7]
[425287549,1781646633000,-1418.2850917,0.00016473,2]
[425287553,1781646633000,-412.41705485,0.00016964,7]
[425287540,1781646633000,-412.41705481,0.00015449,7]
[425287556,1781646633000,-500.0,0.00017877,2]
[425287565,1781646633000,-1826.79967184,0.00017878,2]
[425287566,1781646633000,-51827.3910813,0.00017878,2]
[425287564,1781646633000,-9405.57095965,0.00017878,2]
[425287563,1781646633000,-337.1173278,0.00017877,2]
[425287562,1781646633000,-500.0,0.00017877,2]
[425287558,1781646633000,-500.0,0.00017877,2]
[425287560,1781646633000,-500.0,0.00017877,2]
[425287559,1781646633000,-500.0,0.00017877,2]
[425287555,1781646633000,-2393.83803407,0.00017778,2]
[425287557,1781646633000,-425.65742576,0.00017877,2]
[425287561,1781646633000,-500.0,0.00017877,2]
[425287588,1781646640000,-238239.42450943,0.00017878,2]
[425287600,1781646640000,-129386.94249257,0.00017878,2]
[425287587,1781646640000,-41189.48418494,0.00017878,2]
[425287659,1781646645000,-26185.70092749,0.00017878,2]
[425287881,1781646646000,-1139.17798744,0.00017878,2]
[425287883,1781646647000,-799.65154018,0.00017878,2]
[425288098,1781646757000,302.18,0.00024633,120]
[425288101,1781646862000,773.1847745,0.00011,13]
[425288145,1781647529000,-300.0,0.0001,2]
[425288148,1781647556000,-219.006717,0.000115,2]
[425288147,1781647556000,-80.993283,0.0001,2]
[425288149,1781647567000,192.12177852,0.000102,7]
[425288152,1781647588000,-11.81733222,0.000115,2]
[425288151,1781647588000,-288.18266778,0.000108,7]
[425288155,1781647614000,-2100.0,0.000115,2]
[425288165,1781647831000,-280.19942703,0.000125,2]
[425288164,1781647831000,-147.43425838,0.000115,2]
[425288187,1781647838000,-300.0,0.0001642,2]
[425288186,1781647838000,-300.0,0.0001642,2]
[425288183,1781647838000,-300.0,0.0001642,2]
[425288184,1781647838000,-300.0,0.0001642,2]
[425288185,1781647838000,-300.0,0.0001642,2]
[425288190,1781647838000,-300.0,0.0001642,2]
[425288180,1781647838000,-300.0,0.0001642,2]
[425288176,1781647838000,-477.883586,0.00015963,2]
[425288177,1781647838000,-500.0,0.00016292,2]
[425288179,1781647838000,-300.0,0.0001642,2]
[425288182,1781647838000,-300.0,0.0001642,2]
[425288178,1781647838000,-300.0,0.0001642,2]
[425288175,1781647838000,-1382.2007159,0.00015354,2]
[425288172,1781647838000,-498.09034807,0.00015294,2]
[425288173,1781647838000,-885.49395213,0.00015294,2]
[425288171,1781647838000,-276.71686004,0.00015294,2]
[425288170,1781647838000,-1668.33718372,0.000125,2]
[425288181,1781647838000,-300.0,0.0001642,2]
[425288191,1781647838000,-300.0,0.0001642,2]
[425288195,1781647838000,-159.193888,0.000175,2]
[425288198,1781647838000,-179.68,0.00017568,3]
[425288208,1781647838000,-505.41644782,0.00017577,2]
[425288209,1781647838000,-487985.6826741,0.00017578,2]
[425288188,1781647838000,-300.0,0.0001642,2]
[425288205,1781647838000,-326.47367993,0.00017577,2]
[425288207,1781647838000,-500.0,0.00017577,2]
[425288203,1781647838000,-500.0,0.00017577,2]
[425288204,1781647838000,-647.96019803,0.00017577,2]
[425288202,1781647838000,-500.0,0.00017577,2]
[425288206,1781647838000,-315.23525864,0.00017577,2]
[425288201,1781647838000,-500.0,0.00017577,2]
[425288197,1781647838000,-359.37,0.00017568,3]
[425288194,1781647838000,-2094.60827982,0.00017478,2]
[425288193,1781647838000,-318.495,0.00016875,2]
[425288192,1781647838000,-300.0,0.0001642,2]
[425288199,1781647838000,-539.09,0.00017568,3]
[425288196,1781647838000,-159.19388799,0.000175,2]
[425288189,1781647838000,-300.0,0.0001642,2]
[425288200,1781647838000,-159.929,0.00017577,2]
[425288220,1781647843000,-973.27240735,0.00017578,2]
[425288221,1781647843000,-4334.12932627,0.00017578,2]
[425288222,1781647843000,-3041.56825577,0.00017578,2]
[425288223,1781647843000,-1002.5345275,0.00017578,2]
[425288228,1781647846000,-43339.25422593,0.00017578,2]
[425288398,1781647950000,200.0,0.00023097,120]
[425288409,1781648010000,200.0,0.00022254,120]
[425288441,1781648546000,188.0,0.00023988,120]
[425288487,1781649035000,-1000.0,0.00016013,2]
[425288485,1781649035000,-351.58711007,0.00015132,2]
[425288483,1781649035000,-425.6852998,0.00015132,2]
[425288482,1781649035000,-272.71130317,0.00015132,2]
[425288488,1781649035000,-363.24938555,0.00016039,2]
[425288484,1781649035000,-307.94666798,0.00015132,2]
[425288479,1781649035000,-250.0,0.00010981,2]
[425288481,1781649035000,-238.62239028,0.00015132,2]
[425288490,1781649035000,-268.586266,0.00016154,2]
[425288489,1781649035000,-238.941793,0.00016039,2]
[425288480,1781649035000,-170.82709598,0.00011,2]
[425288478,1781649035000,-429.91555989,0.0001,2]
[425288491,1781649035000,-300.0,0.00016183,2]
[425288486,1781649035000,-152.0,0.00015764,7]
[425288496,1781649035000,-57.49570329,0.00017269,2]
[425288492,1781649035000,-159.63,0.00016626,2]
[425288493,1781649035000,-161.38,0.00016726,2]
[425288504,1781649035000,-173.1320638,0.00017506,2]
[425288505,1781649035000,-500.0,0.00017576,2]
[425288502,1781649035000,-1278.73816668,0.00017269,2]
[425288506,1781649035000,-400.62841175,0.00017576,2]
[425288501,1781649035000,-819.21163831,0.00017269,2]
[425288498,1781649035000,-385.21475552,0.00017269,2]
[425288499,1781649035000,-256.00363697,0.00017269,2]
[425288494,1781649035000,-165.54,0.00016845,2]
[425288497,1781649035000,-246.78422776,0.00017269,2]
[425288500,1781649035000,-460.80654655,0.00017269,2]
[425288495,1781649035000,-158.440496,0.00017269,2]
[425288503,1781649035000,-221.98484937,0.00017355,2]
[425288564,1781649038000,-99.37158825,0.00017576,2]
[425288562,1781649038000,-7118.3903371,0.00015625,2]
[425288588,1781649038000,-500.0,0.00017577,2]
[425288581,1781649038000,-500.0,0.00017577,2]
[425288571,1781649038000,-500.0,0.00017577,2]
[425288570,1781649038000,-1495.65,0.00017577,2]
[425288583,1781649038000,-1175.57,0.00017577,2]
[425288573,1781649038000,-500.0,0.00017577,2]
[425288566,1781649038000,-500.0,0.00017576,2]
[425288578,1781649038000,-500.0,0.00017577,2]
[425288590,1781649038000,-500.0,0.00017577,2]
[425288586,1781649038000,-636.46,0.00017577,2]
[425288594,1781649038000,-767976.70297939,0.00017629,2]
[425288568,1781649038000,-500.0,0.00017577,2]
[425288592,1781649038000,-89729.813614,0.00017629,2]
[425288600,1781649038000,-1268.88875421,0.00017729,2]
[425288596,1781649038000,-2347.57941441,0.00017633,2]
[425288598,1781649038000,-800056.93117388,0.00017729,2]
[425288577,1781649038000,-1011.36,0.00017577,2]
[425288771,1781649046000,-6745.654063,0.00017729,2]
[425288772,1781649070000,250.0,0.00014,2]
[425288773,1781649107000,-648.85524927,0.00017529,2]
[425288793,1781649856000,500.0,0.00024658,120]
[425288796,1781649923000,1000.0,0.00024658,120]
[425288797,1781649979000,550.0,0.00024658,120]
[425288831,1781650232000,-2367.51842085,0.00017429,2]
[425288822,1781650232000,-965.965162,0.00016452,2]
[425288824,1781650232000,-1000.0,0.00016503,2]
[425288819,1781650232000,-152.0,0.00015801,7]
[425288826,1781650232000,-214.869012,0.00016528,2]
[425288828,1781650232000,-460.71365285,0.00017429,2]
[425288833,1781650232000,-300.0,0.00017526,2]
[425288852,1781650232000,-609.62226055,0.00017527,2]
[425288839,1781650232000,-600.14142545,0.00017527,2]
[425288835,1781650232000,-300.0,0.00017526,2]
[425288841,1781650232000,-679.45363298,0.00017527,2]
[425288844,1781650232000,-153.73494157,0.00017527,2]
[425288846,1781650232000,-500.0,0.00017527,2]
[425288849,1781650232000,-231.24142281,0.00017527,2]
[425288837,1781650232000,-500.0,0.00017527,2]
[425289068,1781650238000,-544.71371899,0.00017527,2]
[425289065,1781650238000,-500.0,0.00017527,2]
[425289070,1781650238000,-500.0,0.00017527,2]
[425289066,1781650238000,-500.0,0.00017527,2]
[425289063,1781650238000,-500.0,0.00017527,2]
[425289059,1781650238000,-633.13327853,0.00017527,2]
[425289060,1781650238000,-500.0,0.00017527,2]
[425289061,1781650238000,-500.0,0.00017527,2]
[425289058,1781650238000,-500.0,0.00017527,2]
[425289055,1781650238000,-359.59773945,0.00017527,2]
[425289056,1781650238000,-500.0,0.00017527,2]
[425289057,1781650238000,-500.0,0.00017527,2]
[425289067,1781650238000,-500.0,0.00017527,2]
[425289062,1781650238000,-500.0,0.00017527,2]
[425289071,1781650238000,-502.93837888,0.00017528,2]
[425289064,1781650238000,-500.0,0.00017527,2]
[425289075,1781650238000,-1433.33,0.00017575,2]
[425289086,1781650238000,-366.28189678,0.00017626,2]
[425289085,1781650238000,-453.57213862,0.00017626,2]
[425289087,1781650238000,-75196.95527829,0.00017627,2]
[425289084,1781650238000,-151.0,0.000176,2]
[425289082,1781650238000,-151.0,0.000176,2]
[425289083,1781650238000,-151.0,0.000176,2]
[425289081,1781650238000,-500.0,0.00017576,2]
[425289077,1781650238000,-969.22,0.00017575,2]
[425289080,1781650238000,-502.67270164,0.00017576,2]
[425289079,1781650238000,-1126.59,0.00017576,2]
[425289078,1781650238000,-500.0,0.00017575,2]
[425289076,1781650238000,-500.0,0.00017575,2]
[425289072,1781650238000,-500.0,0.00017528,2]
[425289074,1781650238000,-500.0,0.00017575,2]
[425289088,1781650238000,-40492.03240073,0.00017627,2]
[425289073,1781650238000,-186.31376658,0.00017528,2]
[425289096,1781650240000,-1439.22207948,0.00017627,2]
[425289098,1781650240000,-2431.84996967,0.00017627,2]
[425289097,1781650240000,-4008.12926576,0.00017627,2]
[425289124,1781650246000,-2079.28512943,0.00017627,2]
[425289179,1781651432000,-328.63213831,0.00013,2]
[425289172,1781651432000,-844.57302245,0.00012999,2]
[425289173,1781651432000,-3832.15870349,0.00013,2]
[425289311,1781651441000,-510.71739599,0.00013,2]
[425289312,1781651441000,-1759.06595017,0.00013,2]
[425289314,1781651441000,-970.254555,0.00015768,2]
[425289316,1781651441000,-252.59417666,0.00016211,2]
[425289313,1781651441000,-151.0,0.00013618,2]
[425289322,1781651441000,-1036.16502485,0.00016699,2]
[425289315,1781651441000,-217.269663,0.00016136,2]
[425289318,1781651441000,-300.0,0.00016698,2]
[425289319,1781651441000,-213.34441379,0.00016699,2]
[425289320,1781651441000,-323.80157027,0.00016699,2]
[425289321,1781651441000,-582.84282648,0.00016699,2]
[425289325,1781651441000,-342.31980703,0.00016699,2]
[425289323,1781651441000,-1617.38884348,0.00016699,2]
[425289330,1781651441000,-2474.70306447,0.00017226,2]
[425289332,1781651441000,-8761.32767937,0.00017226,2]
[425289324,1781651441000,-190.17767057,0.00016699,2]
[425289327,1781651441000,-949.93746452,0.00016699,2]
[425289326,1781651441000,-608.56854584,0.00016699,2]
[425289328,1781651441000,-262.45,0.0001702,2]
[425289333,1781651441000,-558.0,0.00017226,2]
[425289331,1781651441000,-8015.81549736,0.00017226,2]
[425289329,1781651441000,-2044.95351684,0.000172,2]
[425289317,1781651441000,-328.63213831,0.00016591,7]
[425289359,1781651443000,-620.51122382,0.00017226,2]
[425289355,1781651443000,-1172.17607391,0.00017226,2]
[425289360,1781651443000,-1834.88005587,0.00017226,2]
[425289357,1781651443000,-7226.84326751,0.00017226,2]
[425289356,1781651443000,-15510.53395227,0.00017226,2]
[425289362,1781651443000,-2909.34647797,0.00017226,2]
[425289361,1781651443000,-695.7,0.00017226,2]
[425289358,1781651443000,-5589.94012964,0.00017226,2]
[425289370,1781651446000,-221133.75637857,0.00017226,2]
[425289371,1781651446000,-591.43340639,0.00017226,2]
[425289368,1781651446000,-765.2666295,0.00017226,2]
[425289369,1781651446000,-670.22,0.00017226,2]
[425289367,1781651446000,-213.34441379,0.00015864,2]
[425289444,1781652632000,-222.340271,0.0001578,2]
[425289438,1781652632000,-260.56062909,0.00014317,2]
[425289439,1781652632000,-253.69697071,0.00015071,2]
[425289442,1781652632000,-191.579292,0.00015763,2]
[425289446,1781652632000,-402.42210974,0.00015863,2]
[425289440,1781652632000,-396.00511522,0.00015071,2]
[425289451,1781652632000,-205.96902486,0.00016842,3]
[425289449,1781652632000,-300.0,0.00016776,2]
[425289453,1781652632000,-296.11180433,0.00016842,3]
[425289458,1781652632000,-151.5,0.00016842,2]
[425289460,1781652632000,-490.18501284,0.00016842,3]
[425289448,1781652632000,-920.837786,0.00015992,2]
[425289454,1781652632000,-500.0,0.00016842,3]
[425289456,1781652632000,-349.70006729,0.00016842,3]
[425289525,1781652641000,-151.5,0.00016842,3]
[425289536,1781652641000,-955.0,0.00016842,3]
[425289537,1781652641000,-955.0,0.00016842,3]
[425289534,1781652641000,-955.0,0.00016842,3]
[425289533,1781652641000,-277.71993064,0.00016842,3]
[425289532,1781652641000,-500.0,0.00016842,3]
[425289529,1781652641000,-500.0,0.00016842,3]
[425289528,1781652641000,-500.0,0.00016842,3]
[425289527,1781652641000,-500.0,0.00016842,3]
[425289526,1781652641000,-500.0,0.00016842,3]
[425289540,1781652641000,-955.0,0.00016842,3]
[425289524,1781652641000,-500.0,0.00016842,3]
[425289530,1781652641000,-500.0,0.00016842,3]
[425289521,1781652641000,-221.98484937,0.00014317,2]
[425289523,1781652641000,-151.5,0.00016842,3]
[425289522,1781652641000,-9.81498716,0.00016842,3]
[425289531,1781652641000,-500.0,0.00016842,3]
[425289542,1781652641000,-500.0,0.00017025,2]
[425289543,1781652641000,-500.0,0.00017025,2]
[425289541,1781652641000,-191.579292,0.00016867,2]
[425289557,1781652641000,-151467.1958706,0.00017026,2]
[425289558,1781652641000,-2658.69695184,0.00017026,2]
[425289553,1781652641000,-500.0,0.00017025,2]
[425289551,1781652641000,-500.0,0.00017025,2]
[425289555,1781652641000,-566.8419111,0.00017025,2]
[425289549,1781652641000,-500.0,0.00017025,2]
[425289554,1781652641000,-311.92185632,0.00017025,2]
[425289552,1781652641000,-426.20071211,0.00017025,2]
[425289556,1781652641000,-185.67369648,0.00017026,2]
[425289548,1781652641000,-500.0,0.00017025,2]
[425289547,1781652641000,-500.0,0.00017025,2]
[425289545,1781652641000,-500.0,0.00017025,2]
[425289546,1781652641000,-500.0,0.00017025,2]
[425289544,1781652641000,-500.0,0.00017025,2]
[425289538,1781652641000,-955.0,0.00016842,3]
[425289535,1781652641000,-955.0,0.00016842,3]
[425289539,1781652641000,-955.0,0.00016842,3]
[425289550,1781652641000,-500.0,0.00017025,2]
[425289580,1781652647000,-955.0,0.00016842,3]
[425289581,1781652647000,-220.30941863,0.00016842,3]
[425289593,1781652710000,-484.69058137,0.00016842,3]
[425289630,1781653472000,-520.2,0.00023155,30]
[425289632,1781653473000,-386.07,0.00023363,30]
[425289631,1781653473000,-150.976,0.00023284,30]
[425289634,1781653473000,-7427.64496702,0.00023507,30]
[425289633,1781653473000,-2462.954,0.00023507,30]
[425289637,1781653473000,-5434.0,0.00024,30]
[425289636,1781653473000,-301.88574124,0.0002397,30]
[425289638,1781653473000,-417.15472785,0.00024,30]
[425289639,1781653473000,-8888.43513664,0.00024002,30]
[425289635,1781653473000,-319.62,0.000239,30]
[425289721,1781653831000,-628.0,0.00016577,2]
[425289715,1781653831000,-628.0,0.00016577,2]
[425289719,1781653831000,-628.0,0.00016577,2]
[425289717,1781653831000,-628.0,0.00016577,2]
[425289709,1781653831000,-300.0,0.00016576,2]
[425289711,1781653831000,-628.0,0.00016577,2]
[425289707,1781653831000,-191.26446445,0.00016568,3]
[425289725,1781653831000,-628.0,0.00016577,2]
[425289703,1781653831000,-151.5,0.00016568,3]
[425289696,1781653831000,-222.340271,0.00015801,2]
[425289694,1781653831000,-210.93456949,0.00015185,2]
[425289700,1781653831000,-176.60298563,0.00016185,2]
[425289702,1781653831000,-159.92903685,0.0001649,2]
[425289698,1781653831000,-919.962127,0.00015826,2]
[425289705,1781653831000,-151.5,0.00016568,3]
[425289723,1781653831000,-628.0,0.00016577,2]
[425289745,1781653831000,-628.0,0.00016577,2]
[425289726,1781653831000,-628.0,0.00016577,2]
[425289755,1781653831000,-636.64245406,0.00016577,2]
[425289757,1781653831000,-161.03938469,0.000166,2]
[425289753,1781653831000,-628.0,0.00016577,2]
[425289749,1781653831000,-628.0,0.00016577,2]
[425289744,1781653831000,-628.0,0.00016577,2]
[425289751,1781653831000,-628.0,0.00016577,2]
[425289713,1781653831000,-628.0,0.00016577,2]
[425289740,1781653831000,-628.0,0.00016577,2]
[425289736,1781653831000,-628.0,0.00016577,2]
[425289732,1781653831000,-628.0,0.00016577,2]
[425289738,1781653831000,-628.0,0.00016577,2]
[425289742,1781653831000,-628.0,0.00016577,2]
[425289734,1781653831000,-628.0,0.00016577,2]
[425289730,1781653831000,-628.0,0.00016577,2]
[425289728,1781653831000,-628.0,0.00016577,2]
[425289747,1781653831000,-628.0,0.00016577,2]
[425289761,1781653832000,-749.12774888,0.00016626,2]
[425289762,1781653832000,-179.68,0.00016716,3]
[425289766,1781653832000,-502.48281347,0.00016716,3]
[425289768,1781653832000,-97.56604917,0.00016724,2]
[425289764,1781653832000,-36.57718653,0.00016716,3]
[425290344,1781653838000,-1313.88,0.00016725,2]
[425290359,1781653838000,-888.45,0.00016725,2]
[425290353,1781653838000,-1313.88,0.00016725,2]
[425290355,1781653838000,-1313.88,0.00016725,2]
[425290358,1781653838000,-888.45,0.00016725,2]
[425290350,1781653838000,-1313.88,0.00016725,2]
[425290357,1781653838000,-1314.09948988,0.00016725,2]
[425290347,1781653838000,-1313.88,0.00016725,2]
[425290343,1781653838000,-1313.88,0.00016725,2]
[425290340,1781653838000,-1313.88,0.00016725,2]
[425290342,1781653838000,-1313.88,0.00016725,2]
[425290346,1781653838000,-1313.88,0.00016725,2]
[425290351,1781653838000,-1313.88,0.00016725,2]
[425290341,1781653838000,-1313.88,0.00016725,2]
[425290363,1781653838000,-888.45,0.00016725,2]
[425290337,1781653838000,-1313.88,0.00016725,2]
[425290329,1781653838000,-1313.88,0.00016725,2]
[425290331,1781653838000,-1313.88,0.00016725,2]
[425290336,1781653838000,-1313.88,0.00016725,2]
[425290335,1781653838000,-1313.88,0.00016725,2]
[425290339,1781653838000,-1313.88,0.00016725,2]
[425290334,1781653838000,-1313.88,0.00016725,2]
[425290333,1781653838000,-1313.88,0.00016725,2]
[425290330,1781653838000,-1313.88,0.00016725,2]
[425290328,1781653838000,-1313.88,0.00016725,2]
[425290326,1781653838000,-492.75994904,0.00016724,2]
[425290327,1781653838000,-1313.88,0.00016725,2]
[425290325,1781653838000,-402.43395083,0.00016724,2]
[425290332,1781653838000,-1313.88,0.00016725,2]
[425290361,1781653838000,-888.45,0.00016725,2]
[425290373,1781653838000,-888.45,0.00016725,2]
[425290365,1781653838000,-888.45,0.00016725,2]
[425290393,1781653838000,-151.0,0.00016726,2]
[425290390,1781653838000,-151.0,0.00016726,2]
[425290391,1781653838000,-272.818243,0.00016726,2]
[425290387,1781653838000,-151.0,0.00016726,2]
[425290389,1781653838000,-151.0,0.00016726,2]
[425290394,1781653838000,-182602.32990213,0.00016726,2]
[425290388,1781653838000,-151.0,0.00016726,2]
[425290386,1781653838000,-233.92516738,0.00016726,2]
[425290380,1781653838000,-888.45,0.00016725,2]
[425290379,1781653838000,-888.45,0.00016725,2]
[425290381,1781653838000,-888.45,0.00016725,2]
[425290382,1781653838000,-888.67066765,0.00016725,2]
[425290372,1781653838000,-888.45,0.00016725,2]
[425290378,1781653838000,-888.45,0.00016725,2]
[425290384,1781653838000,-496.77270157,0.00016725,2]
[425290374,1781653838000,-888.45,0.00016725,2]
[425290364,1781653838000,-888.45,0.00016725,2]
[425290371,1781653838000,-888.45,0.00016725,2]
[425290368,1781653838000,-888.45,0.00016725,2]
[425290366,1781653838000,-888.45,0.00016725,2]
[425290385,1781653838000,-317.50049704,0.00016725,2]
[425290367,1781653838000,-888.45,0.00016725,2]
[425290360,1781653838000,-888.45,0.00016725,2]
[425290370,1781653838000,-888.45,0.00016725,2]
[425290392,1781653838000,-151.0,0.00016726,2]
[425290383,1781653838000,-500.0,0.00016725,2]
[425290375,1781653838000,-888.45,0.00016725,2]
[425290377,1781653838000,-888.45,0.00016725,2]
[425290369,1781653838000,-888.45,0.00016725,2]
[425290362,1781653838000,-888.45,0.00016725,2]
[425290985,1781654288000,1939.78263595,0.00024,30]
[425290987,1781654416000,319.59,0.000238,30]
[425290988,1781654472000,-228.97301194,0.00013,2]
[425290989,1781654507000,500.0,0.00024,30]
[425290990,1781654518000,300.0,0.00024658,120]
[425290993,1781654527000,300.0,0.00024658,120]
[425290994,1781654539000,300.0,0.00024658,120]
[425291022,1781655031000,-176.80249873,0.00011,2]
[425291021,1781655031000,-248.88641844,0.0001,2]
[425291024,1781655031000,-7.7691929,0.00012471,2]
[425291031,1781655031000,-4772.86839036,0.00013,2]
[425291033,1781655031000,-202.827296,0.00015068,2]
[425291037,1781655031000,-852.801731,0.00015606,2]
[425291030,1781655031000,-242.2308071,0.00012471,2]
[425291044,1781655031000,-410.21401341,0.00016174,2]
[425291040,1781655031000,-229.94979731,0.00016174,2]
[425291042,1781655031000,-262.79976835,0.00016174,2]
[425291039,1781655031000,-300.0,0.00016173,2]
[425291046,1781655031000,-1000.0,0.000162,2]
[425291048,1781655031000,-4832.544886,0.00016483,2]
[425291035,1781655031000,-1000.0,0.00015253,2]
[425291062,1781655032000,-500.0,0.00016523,2]
[425291072,1781655032000,-503.06226615,0.00016523,2]
[425291075,1781655032000,-500.0,0.00016523,2]
[425291070,1781655032000,-500.0,0.00016523,2]
[425291073,1781655032000,-500.0,0.00016523,2]
[425291058,1781655032000,-662.07,0.00016523,2]
[425291066,1781655032000,-161.78465718,0.00016523,2]
[425291049,1781655032000,-152.17872271,0.000165,2]
[425291064,1781655032000,-1556.16,0.00016523,2]
[425291060,1781655032000,-500.0,0.00016523,2]
[425291056,1781655032000,-856.72,0.00016523,2]
[425291053,1781655032000,-359.36,0.00016515,3]
[425291054,1781655032000,-500.0,0.00016523,2]
[425291051,1781655032000,-152.17872271,0.000165,2]
[425291077,1781655032000,-46.91521672,0.00016523,2]
[425291068,1781655032000,-791.7,0.00016523,2]
[425291079,1781655032000,-453.08478328,0.00016523,2]
[425291088,1781655032000,-500.0,0.00016523,2]
[425291082,1781655032000,-591.11,0.00016523,2]
[425291081,1781655032000,-500.0,0.00016523,2]
[425291108,1781655032000,-731.28,0.00016524,2]
[425291109,1781655032000,-500.0,0.00016524,2]
[425291106,1781655032000,-500.0,0.00016524,2]
[425291102,1781655032000,-185.6063501,0.00016524,2]
[425291100,1781655032000,-1898.03,0.00016524,2]
[425291099,1781655032000,-500.0,0.00016524,2]
[425291104,1781655032000,-314.3936499,0.00016524,2]
[425291093,1781655032000,-500.0,0.00016524,2]
[425291090,1781655032000,-502.16131072,0.00016524,2]
[425291095,1781655032000,-502.4263501,0.00016524,2]
[425291097,1781655032000,-108.4136499,0.00016524,2]
[425291086,1781655032000,-74.51478328,0.00016523,2]
[425291084,1781655032000,-890.40521672,0.00016523,2]
[425291092,1781655032000,-500.0,0.00016524,2]
[425291111,1781655032000,-385.90880634,0.00016524,2]
[425291297,1781655038000,-500.0,0.00016524,2]
[425291293,1781655038000,-517.9372245,0.00016524,2]
[425291303,1781655038000,-647.13,0.00016524,2]
[425291300,1781655038000,-500.0,0.00016524,2]
[425291296,1781655038000,-503.26939813,0.00016524,2]
[425291298,1781655038000,-500.0,0.00016524,2]
[425291299,1781655038000,-663.49,0.00016524,2]